{"text_format":"1","workbook":"xlsx","n_sheets":14,"sheets":["Cover","Info","Results","E01","E02","E03","E04","E05","E06","E07","E08","E09","E10","About"],"not_rendered":{"charts":11,"images":44,"macros":1,"external_links":0,"defined_names":15,"comments":0,"pivot_tables":0},"unopened":[],"bounds":{"document_bytes":16777216,"sheet_cells":100000,"rows_first":2000,"rows_last":500,"rows_between":2000,"halvings":0,"cell_chars":16384,"cell_head_chars":4096},"cells_cut":0,"cells_raw":0,"read":"whole","date_system":"1900"}

{"sheet":"Cover","index":0,"n_rows":0,"n_cols":0,"rows_kept":0,"cut":false,"hidden":false,"merged":[]}

{"sheet":"Info","index":1,"n_rows":39,"n_cols":4,"rows_kept":39,"cut":false,"hidden":false,"merged":[[38,1,38,3],[39,1,39,3],[2,1,2,2],[3,1,3,2],[4,1,4,2],[5,1,5,2],[6,1,6,2],[37,1,37,3],[31,1,31,2],[32,1,32,2],[33,1,33,2],[34,1,34,2],[35,1,35,2]]}
[]
[]
[null,"मूल्याङ्कनको क्षेत्र",null,"प्रतिक्रिया"]
[null,"सहरको नाम"]
[null,"सहरको किसिम (नगरपालिका, महानगरपालिका क्षेत्र, आदि)"]
[null,"देश"]
[null,"मूल्याङ्कनको मिति"]
[]
[null,"सहरको पार्श्‍वचित्र (अनिवार्य)","प्रतिक्रिया","स्रोत मिति"]
[null,"सर्बोच्च तहको पदाधिकारीको पद (जस्तै: नगर प्रमुख, आदि)"]
[null,"सहरको जम्मा जनसंख्या"]
[null,"सहरको क्षेत्रफल वर्ग किलोमिटरमा"]
[null,"जनघनत्त्व (प्रति वर्ग किलोमिटर)"]
[null,"जनघनत्त्व (प्रति वर्ग किलोमिटर)"]
[null,"वृद्धअवस्थाका जनसंख्या (६५+) (प्रतिशतमा)"]
[null,"लिङ्ग (महिला घरमूली भएको परिवार)"]
[null,"साक्षरता दर (साक्षर जनसंख्या प्रतिशतमा)"]
[null,"गरिबीको दर (गरिबी नभएको जनसंख्या प्रतिशतमा) "]
[null,"परिवारको औषत आम्दानी (अमेरिकी डलरमा)"]
[null,"गैर नागरिक बासिन्दाहरु (प्रतिशतमा)"]
[null,"हुन सक्ने (सम्भावित) ज्ञात प्रकोप जोखिम"]
[null,"अति गम्भीर प्रकोप (ज्ञात)"]
[]
[null,"सहरको पार्श्‍वचित्र (बैकल्पिक)","प्रतिक्रिया","स्रोत मिति"]
[null,"कुल परिवार संख्या"]
[null,"प्रति एकाइ ब्यक्ति"]
[null,"जीवन निर्वाहको लागत (अमेरिकी डलरमा)"]
[null,"देशको प्रतिव्यक्ति कुल ग्राहस्थ उत्पादन (अमेरिकी डलरमा)"]
[null,"गिनि गुणाङ्क"]
[null,"सहरको प्रतिव्यक्ति उत्पादन (अमेरिकी डलरमा)"]
[]
[null,"स्थानीय सरकारको विपद् जोखिम न्यूनीकरण र उत्थानशीलता टोली",null,"प्रतिक्रिया"]
[null,"स्कोरकार्ड मूल्याङ्कन पूरा गर्ने/समन्वय गर्ने व्यक्तिको नाम"]
[null,"संगठन"]
[null,"सम्पर्क"]
[null,"नतिजाहरू साझा गर्न वा UNDRR र साझेदारहरू द्वारा उदाहरण / घटना अध्ययनको रूपमा प्रयोग गर्न इच्छुकता"]
[]
[null,"सरोकारवालाको जानकारी"]
[null,"कृपया तल यस मूल्याङ्कनलाई समर्थन गर्ने सबै सरोकारवालाहरूलाई तल सूचीबद्ध गर्नुहोस् ।"]

{"sheet":"Results","index":2,"n_rows":221,"n_cols":13,"rows_kept":221,"cut":false,"hidden":false,"merged":[[131,2,131,5],[35,2,35,5],[36,2,36,5],[37,2,37,5],[123,2,123,5],[124,2,124,5],[125,2,125,5],[47,2,47,5],[48,2,48,5],[49,2,49,5],[50,2,50,5],[126,2,126,5],[127,2,127,5],[128,2,128,5],[129,2,129,5],[130,2,130,5],[51,2,51,5],[61,2,61,5],[62,2,62,5],[63,2,63,5],[64,2,64,5],[89,2,89,5],[85,1,85,6],[74,2,74,5],[75,2,75,5],[76,2,76,5],[77,2,77,5],[87,2,87,5],[88,2,88,5],[111,2,111,5],[98,2,98,5],[94,1,94,6],[96,2,96,5],[97,2,97,5],[106,1,106,6],[108,2,108,5],[109,2,109,5],[110,2,110,5],[99,2,99,5],[100,2,100,5],[101,2,101,5],[158,1,158,3],[134,1,134,6],[136,2,136,5],[137,2,137,5],[138,2,138,5],[139,2,139,5],[140,2,140,5],[141,2,141,5],[142,2,142,5],[146,1,146,6],[148,2,148,5],[149,2,149,5]]}
[]
[]
[]
[]
[]
[]
[]
[]
[]
[]
[]
[]
[]
[]
[]
[]
[]
[]
[]
[]
[]
[]
[]
[]
[]
[]
[]
[]
[]
[]
[]
[]
[]
[null,"आवश्यकता १: उत्थानशीलताको लागि संगठित हुने"]
[]
[null,"P १.१ ","के सहरको गुरु योजना (वा त्यससँग सम्बन्धित रणनीति/ योजना) ले सेन्डाई कार्यढाँचा अनुरुप विपद् जोखिम न्यूनीकरणका उपायहरु समावेश गर्ने गरी लागू भएको छ ?",null,null,null,{"$f":"F175","v":0}]
[null,"P १.२","के विपद् जोखिम न्यूनीकरण गर्न अधिकार सम्पन्न र स्रोत साधन सहितको बहुसंस्था/ विषयगत संयन्त्र छ ?",null,null,null,{"$f":"F176","v":0}]
[null,"P १.३ ","के विपद् जोखिम न्यूनीकरण गर्न अधिकार सम्पन्न र स्रोत साधन सहितको बहुसंस्था/ विषयगत संयन्त्र छ ?",null,null,null,0]
[]
[]
[]
[]
[]
[]
[]
[null,"आवश्यकता २: वर्तमान र भविष्यको जोखिम पृष्ठभूमिको पहिचान, बुझाई र प्रतिकार्य"]
[]
[null,"P २.१","के सहरलाई सहरले सामना गर्ने मुख्य खतराहरु र तिनीहरुको घटनाको सम्भावित आँकलन बारेमा जानकारी छ ?",null,null,null,{"$f":"F178","v":0}]
[null,"P २.२ ","के सहर र विभिन्‍न सेवा प्रदायक, अन्य विभिन्न तहको तनाव र सहरस्तरको जोखिमको बारेमा साझा बुझाई छ ?  जसमा विद्युत, पानी, सडक र रेल नगर स्तरको जोखिम प्रणालीमा तनाव आदिको व्यवस्थापन गर्न भूमिका खेल्ने बारेमा सहर र विभिन्न सेवा प्रदायक संस्थाहरु र अन्य विभिन्न निकाय र संघीय एजेन्सीहरु बीचमा जोखिमको साझा बुझाइ छ ? ",null,null,null,{"$f":"F179","v":0}]
[null,"P २.३ ","के त्यहाँ सहर-व्यापी सम्मुखता र सङ्कटासन्नतालाई प्रत्येक जोखिम वा जोखिमको समूहहरुबाट (माथि हेर्नुहोस्) व्यवस्था गर्ने सहमति गरिएको अवस्थाहरु छन् ?",null,null,null,0]
[null,"P २.४","के विभिन्न अवस्थाहरुमा, विभिन्न सहर र भौतिक पूर्वाधारको प्रणालीहरुबीच हुन सक्ने अन्तरसम्बन्धित समस्याहरुको बारेमा जनकारी छ ?",null,null,null,0]
[null,"P २.५","के जोखिमको प्रष्ट नक्सा र जोखिमको विद्यमान तथ्याङ्क छ ? के यो सबै नियमित रुपमा अद्यावधिक छन् ?",null,null,null,0]
[]
[]
[]
[]
[]
[]
[]
[null,"आवश्यकता ३: उत्थानशीलताको लागि वित्तिय क्षमताको अभिबृद्धि गर्ने"]
[]
[null,"P ३.१","सहर/ मुख्य एजेन्सीहरुलाई कोषका सबै स्रोतहरु थाहा छ । उत्थानशीलताको लाभहरुसँग अन्तरसम्बन्धित छ । अन्य कोषहरुको बारेमा जानकार छन् । मुख्य  उत्थानशीलता लगानीहरुको लागि सक्रिय रुपमा कोषहरुको अवलम्बन गरिएको छन् ।",null,null,null,{"$f":"F183","v":0}]
[null,"P ३.२","के सहरको स्थानीय विपद् जोखिम न्यूनीकरण (अल्पीकरण, रोकथाम, प्रतिकार्य र पुनर्लाभ) को लागि विशेष (Ring Fenced) सुरक्षित बजेट, आवश्यक स्रोत र आकस्मिक कोषको व्यवस्था छ ?",null,null,null,{"$f":"F184","v":0}]
[null,"P ३.३ ","सहरमा कुन तहसम्मको बिमा विद्यमान रहेको छ, सबै क्षेत्रहरु- व्यवसाय र समुदायमासम्म बिमाको पहुँच रहेको छ ?",null,null,null,0]
[null,"P ३.४","के उत्थानशीलता निर्माण सहयोगार्थ विभिन्न क्षेत्रहरु अथवा व्यवसाय र समुदायहरुको लागि प्रोत्साहन रहेको छ ?",null,null,null,0]
[]
[]
[]
[]
[]
[]
[]
[null,"आवश्यकता ४: उत्थानशील सहरी विकास अवलम्बन गर्ने"]
[]
[null,"P ४.१ ","के उत्थानशीलता निर्माण सहयोगार्थ विभिन्न क्षेत्रहरु अथवा व्यवसाय र समुदायहरुको लागि प्रोत्साहन रहेको छ ?",null,null,null,{"$f":"F187","v":0}]
[null,"P ४.२","के उत्थानशीलता प्रवर्धन गर्न नयाँ शहरी विकासको डिजाइन र विकासको माध्यमबाट प्रवर्धन गर्ने उपायहरु छन् ?",null,null,null,{"$f":"F188","v":0}]
[null,"P ४.३","के भवन संहिता वा मापदण्डहरु रहेका छन्, र के तिनीहरुले जानेको खतराहरु र जोखिमहरुलाई तोकेर सम्बोधन गर्छन् ? के यी मापदण्डहरु नियमित रुपमा अद्यावधिक छन् ?",null,null,null,0]
[null,"P ४.४","के भवन संहिता वा मापदण्डहरु रहेका छन्, र के तिनीहरुले जानेको खतराहरु र जोखिमहरुलाई तोकेर सम्बोधन गर्छन् ? के यी मापदण्डहरु नियमित रुपमा अद्यावधिक छन् ?",null,null,null,0]
[]
[]
[]
[]
[]
[]
[]
[null,"आवश्यकता ५: प्राकृतिक पारिस्थितिकीय प्रणालीद्वारा उपलब्ध हुने संरक्षित कार्यहरुको अभिवृद्धिको लागि प्राकृतिक क्षेत्रहरु (विशेष) को सुरक्षा गर्ने"]
[]
[null,"P ५.१","के भवन संहिता वा मापदण्डहरु रहेका छन्, र के तिनीहरुले जानेको खतराहरु र जोखिमहरुलाई तोकेर सम्बोधन गर्छन् ? के यी मापदण्डहरु नियमित रुपमा अद्यावधिक छन् ?",null,null,null,{"$f":"F191","v":0}]
[null,"P ५.२","ठूला शहरी विकास र पूर्वाधार आयोजनामा Green and Blue पूर्वाधारहरुलाई नीतिमार्फत प्रवर्धन गरिएको छ ?",null,null,null,{"$f":"F192","v":0}]
[null,"P ५.३ ","के सहरलाई यसको प्रशासनिक सिमाना बाहिर प्राकृतिक सम्पत्तिको पूँजीबाट प्रदान गरिएको पारिस्थितिक प्रणाली सेवाहरुबारे सहर सचेत छ ? केही सम्पत्तिको संरक्षण र व्यवस्थापनलाई समर्थन गर्न छिमेकी प्रशासनहरुसँग सम्झौताहरु छन् ?",null,null,null,{"$f":"F193","v":0}]
[]
[]
[]
[]
[null,"आवश्यकता ६: उत्थानशीलताको लागि संस्थागत क्षमतामा अभिबृद्धि"]
[]
[null,"P ६.१","के सहरसँग सबै सीप र अनुभवहरुको स्पष्ट ज्ञान छ ? जसले जोखिम कार्य गर्न र पहिचान गरिएको विपद्को क्षेत्रमा उद्धार गर्न आवश्यक छ ?",null,null,null,{"$f":"F194","v":0}]
[null,"P ६.२","के एक व्यवस्थित जन-सम्पर्क र शिक्षा अभियान विद्यमान छ ? जुन प्रणालीसहितको सन्देश र खतरा, जोखिम र प्रकोप जानकारी गराउने सञ्जाल (बुझ्न र प्रयोग गर्न सक्ने) जनतामा सहि तरीकाले प्रवाह भएको होस् ।",null,null,null,{"$f":"F195","v":0}]
[null,"P ६.३ ","सहरको उत्थानशीलताको सन्दर्भमा कुन हदसम्म तथ्याङ्क साझा गरिएको छ ? जुन सहरको उत्थानशीलतामा अन्य संस्थाहरु सँग संलग्न छन् । ",null,null,null,0]
[null,"P ६.४ ","के त्यहाँ सरकार, व्यवसायी, गैर सरकारी संस्था र समुदाय लगायत सहरका सबै क्षेत्रहरुमा प्रस्तावित जोखिम र उत्थानशीलताका मुद्दाहरु समेट्ने गरी प्रशिक्षण पाठ्यक्रमहरु छन् ?",null,null,null,0]
[null,"P ६.५","के तालिम सामाग्रीहरु सहरमा प्रयोग हुने बहुसंख्यक भाषाहरुमा उपलब्ध छ ? ",null,null,null,0]
[null,"P ६.६ ","के सहरले सक्रिय रुपमा ज्ञान आदान प्रदान गर्न र यस्तै चूनौतीहरुको सामना गरिरहेका अन्य सहरहरुबाट सिक्न खोजिरहेको छ ?",null,null,null,0]
[]
[]
[]
[]
[null,"आवश्यकता ७: उत्थानशीलताको लागि सामाजिक क्षमताको बुझाइ र शसक्तिकरण गर्ने"]
[]
[null,"P ७.१","के साधारण जनता वा सामुदायिक संस्थाहरुले सहरको प्रत्येक छिमेकीका लागि पूर्वघटना योजना वा घटना पछिको क्रियाकलापहरुमा (उद्धार) सहभागिता भइरहेका छन् ? ",null,null,null,{"$f":"F200","v":0}]
[null,"P ७.२ ","के त्यहाँ सहरमा सबैभन्दा कमजोर र आवश्यक जनसंख्यालाई नियमित प्रशिक्षण कार्यक्रम प्रदान गरिएको छ ?",null,null,null,{"$f":"F201","v":0}]
[null,"P ७.३","पछिल्लो अठार महिना भित्र समिक्षा गरिएको लिखित मामला निरन्तररुपमा योजनाको कुन अनुपातमा व्यवसायहरु छन् ?",null,null,null,0]
[null,"P ७.४ ","विपद् जोखिम न्यूनीकरणको सम्बन्धमा नागरिक संलग्‍नता र सञ्चारमा सहर कतिको प्रभावकारी छ ?",null,null,null,0]
[]
[]
[]
[]
[]
[]
[]
[]
[]
[null,"आवश्यकता ८: पूर्वाधार उत्थानशीलतामा वृद्धि"]
[]
[null,"P ८.१ ","के संवेदनशील पूर्वाधार उत्थानशीलता सहरको प्राथमिकता हो ? के सहरले संवेदनशील पूर्वाधार योजना वा रणनीतिको स्वामित्व र कार्यान्वयन \nगर्छ ?",null,null,null,{"$f":"F204","v":0}]
[null,"P ८.२","के भएका सुरक्षात्मक पूर्वाधार जोखिम सम्बन्धी जानकारीको आधारमा राम्रोसँग डिजाइन र निर्मित छ ?",null,null,null,{"$f":"F205","v":0}]
[null,"P ८.३","के यी दुई आधारभूत सेवाहरुको लागि सेवाको अर्थपूर्ण हानी सम्झौता विपद् क्षेत्रहरु अन्तर्गत सहरको महत्वपूर्ण अनुपातको लागि आशा \nगरिन्छ ?",null,null,null,0]
[null,"P ८.४ ","के सबैभन्दा खराव अवस्थाको घटनामा सहरको महत्वपूर्ण अनुपातको लागि सेवाको महत्वपूर्ण हानीको अपेक्षा गरिन्छ ? असफलताको अवस्थामा उर्जा पूर्वाधार क्षेत्रहरु सुरक्षित रहनेछन् ? ( जस्तै: चुहावट, विद्युत चुहावट आदी) को जोखिमबाट मुक्त छ ?",null,null,null,0]
[null,"P ८.५","के सबैभन्दा खराब अवस्थाको घटनामा सहरको महत्वपूर्ण अनुपातको लागि सेवाको महत्वपूर्ण घटना अपेक्षित हुने छ ? असफलताको अवस्थामा के यातायात पूर्वाधार क्षेत्रहरु सुरक्षित रहनेछन् (जस्तै : बस्ती र झट्का आदि)",null,null,null,0]
[null,"P ८.६","के सबैभन्दा खराब अवस्थाको घटनामा सहरको महत्वपूर्ण अनुपातको लागि सेवाको महत्वपूर्ण हानीको अपेक्षा गरिन्छ ?",null,null,null,0]
[null,"P ८.७","के त्यहाँ \" सबैभन्दा खराब\" अवस्थामा भयानक प्रकारको उद्धार गर्न सक्ने गरी सेवाको क्षमता हुनेछ ?",null,null,null,0]
[null,"P ८.८","\"धेरै संभावित र सबैभन्दा गम्भीर\" अवस्थाहरुबाट क्षतिको जोखिममा रहेको शिक्षा संरचनाहरुको प्रतिशत",null,null,null,0]
[null,"P ८.९","के त्यहाँ आवश्यकता अनुसार सैन्य वा नागरिक व्याक-अपको साथ पर्याप्त पहिलो प्रतिक्रिया उपकरण हुनेछ ?",null,null,null,0]
[]
[]
[null,"आवश्यकता ९: प्रभावकारी विपद् प्रतिकार्य सुनिश्‍चित गर्ने"]
[]
[null,"P ९.१","के सहरसँग पूर्व सूचना र पूर्वानुमानहरुमा कार्य गर्ने योजना वा उच्चस्तरीय सञ्चालन प्रक्रिया छ ? पूर्व सूचना प्रणाली जनसंख्याको कति अनुपातमा पुगेको छ ?",null,null,null,{"$f":"F213","v":0}]
[null,"P ९.२","के त्यहाँ कुनै विपद् व्यवस्थापन/ तयारी/ आकस्मिक प्रतिकार्य योजना छ ? जसमा सहर अल्पीकरण तयारी र स्थानीय आपतकालिनहरुको प्रतिकार्यको रुपरेखा छ ?",null,null,null,{"$f":"F214","v":0}]
[null,"P ९.३ ","के जिम्मेवारी जोखिम व्यवस्थापन प्राधिकरणसँग सघन घटना अवस्थामा जुध्न प्रथम उद्धारकहरुलाई पुग्ने प्रसस्तै कर्मचारी क्षमता छ ?",null,null,null,0]
[null,"P ९.४","के उपकरण र आपूर्तिको आवश्यकताहरु साथै उपकरणको उपलब्धता स्पष्ट रुपमा परिभाषित गरिएको छ ?",null,null,null,0]
[null,"P ९.५","के सहरले घटनापछि आफ्नो सहरबासीलाई गाँस र बासलाई निरन्तर राख्न सक्षम हुन्छ ।",null,null,null,0]
[null,"P ९.६","के त्यहाँ सबै संस्थाहरुको सहभागितामा, \"सबैभन्दा सम्भावित र सबैभन्दा गम्भीर\" अवस्थाहरुको सामना गर्नको लागि विशेष रुपमा डिजाइन गरिएको स्वचालित उच्च सञ्चालन प्रक्रियाहरुलाई सञ्चालन गर्ने कुनै आपतकालिन केन्द्र छ ?",null,null,null,0]
[null,"P ९.७","के तालिम र अभ्यासहरुमा जनता र पेशेवरहरु दुवैको सहभागिता छ ?",null,null,null,{"$f":"F219","v":0}]
[]
[]
[]
[null,"आवश्यकता १०: पूनर्लाभ मा तीव्रता र पहिला भन्दा अझ बलियो पुन:निर्माण"]
[]
[null,"P १०.१","के त्यहाँ घटनापछिको पुनर्स्थापना र पुनर्निर्माणको लागि आर्थिक पुनर्उत्थान, सामाजिक पक्षहरु आदिका लागि कुनै रणनीति वा प्रक्रिया छ ? ",null,null,null,{"$f":"F220","v":0}]
[null,"P १०.२","के घटनापछिको समीक्षा प्रक्रियाहरुले असफलता विश्लेषणहरु र सिकेका अभ्यासहरु सिक्ने क्षमता समावेश गर्दछ, जुन त्यसपछि पुन: निर्माण परियोजनाहरुको डिजाइन र वितरणमा समावेश हुन्छ ?",null,null,null,{"$f":"F221","v":0}]
[]
[]
[]
[]
[]
[]
[]
[]
[null,{"$f":"TODAY()","v":"2024-04-05"}]
[]
[]
[null,null,"Label","Name",null,"Essential","TotalScore","MaxScore","Label"]
[null,null,"S1","1.   Organise for Disaster Resilience",null,"E1",{"$f":"SUMIFS($F$175:$F$1154,$B$175:$B$1154,F163)","v":0},{"$f":"COUNTIFS($B$175:$B$221,F163)*3","v":9},"01",null,{"$f":"SUM(G163:G172)","v":0},{"$f":"K163/K164","v":0},{"$f":"CONCATENATE(\"यस मूल्याङ्कनको लागि समग्र स्कोर हो \",SUM(G163:G172),\" / \",SUM(H163:H172))","v":"यस मूल्याङ्कनको लागि समग्र स्कोर हो 0 / 141"}]
[null,null,"S2","2.   Identify, Understand and Use Current and Future Risk Scenarios",null,"E2",0,15,"02",null,{"$f":"SUM(H163:H172)","v":141},{"$f":"1-L163","v":1}]
[null,null,"S3","3.   Strengthen Financial Capacity for Resilience",null,"E3",0,12,"03"]
[null,null,"S4","4.   Pursue Resilient Urban Development and Design",null,"E4",0,12,"04"]
[null,null,"S5","5.   Safeguard Natural Buffers to Enhance Ecosystems’ Protective Functions",null,"E5",0,9,"05"]
[null,null,"S6","6.   Strengthen Institutional Capacity for Resilience",null,"E6",0,18,"06"]
[null,null,"S7","7.   Understand and Strengthen Societal Capacity for Resilience",null,"E7",0,12,"07"]
[null,null,"S8","8.   Increase Infrastructure Resilience",null,"E8",0,27,"08"]
[null,null,"S9","9.   Ensure Effective Disaster प्रतिक्रिया",null,"E9",0,21,"09"]
[null,null,"S10","10. Expedite Recovery and Build Back Better",null,"E10",0,6,"10"]
[]
[null,"Section","Ref",null,"प्रश्‍न","SelectedScore","ThisScore"]
[null,"E1","P1.1",null,"Does the City master plan (or relevant strategy/plan) adopt the Sendai Framework?",{"$f":"IF(G175=\"\",0,IF(G175=0,0,4-G175))","v":0},{"$f":"'E01'!$E$7","v":0}]
[null,"E1","P1.2",null,"Is there a multi-agency/sectoral mechanism with appropriate authority and resources to address disaster risk reduction?",{"$f":"IF(G176=\"\",0,IF(G176=0,0,4-G176))","v":0},{"$f":"'E01'!$E$18","v":0}]
[null,"E1","P1.3",null,"Is resilience properly integrated with other key city functions / portfolios?",0,{"$f":"'E01'!$E$29","v":0}]
[null,"E2","P2.1",null,"Does the city have knowledge of the key hazards that the city faces, and their likelihood of occurrence?",0,{"$f":"'E02'!$E$7","v":0}]
[null,"E2","P2.2",null,"Is there a shared understanding of risks between the city and various utility providers and other regional and national agencies that have a role in managing infrastructure such as power, water, roads and trains, of the points of stress on the system and city scale risks? ",0,{"$f":"'E02'!$E$18","v":0}]
[null,"E2","P2.3",null,"Are their agreed scenarios setting out city-wide exposure and vulnerability from each hazard, or groups of hazards (see above)?",0,{"$f":"'E02'!$E$29","v":0}]
[null,"E2","P2.4",null,"Is there a collective understanding of potentially cascading failures between different city and infrastructure systems, under different scenarios?",0,{"$f":"'E02'!$E$40","v":0}]
[null,"E2","P2.5",null,"Do clear hazard maps and data on risk exist? Are these regularly updated?",0,{"$f":"'E02'!$E$51","v":0}]
[null,"E3","P3.1",null,"The city / lead agencies understand all sources of funding, and the “resilience dividends”, are well connected, understand all available routes to attract external funding and are actively pursuing funds for major resilience investments.",0,{"$f":"'E03'!$E$7","v":0}]
[null,"E3","P3.2",null,"Does the city have in place a specific ‘ring fenced’ (protected) budget, the necessary resources and contingency fund arrangements for local disaster risk reduction (mitigation, prevention, प्रतिक्रिया and recovery)?",0,{"$f":"'E03'!$E$18","v":0}]
[null,"E3","P3.3",null,"What level of insurance cover exists in the city, across all sectors – business and community?",0,{"$f":"'E03'!$E$29","v":0}]
[null,"E3","P3.4",null,"What incentives exist for different sectors and segments of business and society to support resilience building?",0,{"$f":"'E03'!$E$40","v":0}]
[null,"E4","P4.1",null,"Is the city appropriately zoned considering, for example, the impact from key risk scenarios on economic activity, agricultural production, and population centres?",0,{"$f":"'E04'!$E$7","v":0}]
[null,"E4","P4.2",null,"Are approaches promoted through the design and development of new urban development to promote resilience?",0,{"$f":"'E04'!$E$18","v":0}]
[null,"E4","P4.3",null,"Do building codes or standards exist, and do they address specific known hazards and risks for the city? Are these standards regularly updated?",0,{"$f":"'E04'!$E$29","v":0}]
[null,"E4","P4.4",null,"Are zoning rules, building codes and standards widely applied, properly enforced and verified?",0,{"$f":"'E04'!$E$40","v":0}]
[null,"E5","P5.1",null,"Beyond just an awareness of the natural assets, does the city understand the functions (or services) that this natural capital provides for the city?",0,{"$f":"'E05'!$E$7","v":0}]
[null,"E5","P5.2",null,"Is green and blue infrastructure being promoted on major urban development and infrastructure projects through policy?",0,{"$f":"'E05'!$E$18","v":0}]
[null,"E5","P5.3",null,"Is the city aware of ecosystem services being provided to the city from natural capital beyond its administrative borders? Are agreements in place with neighbouring administrations to support the protection and management of these assets?",0,{"$f":"'E05'!$E$29","v":0}]
[null,"E6","P6.1",null,"Does the city have clear access to all the skills and experience it believes it would need to respond to reduce risks and respond to identified disaster scenarios?",0,{"$f":"'E06'!$E$7","v":0}]
[null,"E6","P6.2",null,"Does a co-ordinated public relations and education campaign exist, with structured messaging and channels to ensure hazard, risk and disaster information (that can be understood and used) are properly disseminated to the public?",0,{"$f":"'E06'!$E$18","v":0}]
[null,"E6","P6.3",null,"Extent to which data on the city’s resilience context is shared with other organizations involved with the city’s resilience.",0,{"$f":"'E06'!$E$29","v":0}]
[null,"E6","P6.4",null,"Are there training courses covering risk and resilience issues offered to all sectors of the city including government, business, NGOs and community?",0,{"$f":"'E06'!$E$40","v":0}]
[null,"E6","P6.5",null,"Are training materials available in the majority of languages in common use in the city?",0,{"$f":"'E06'!$E$51","v":0}]
[null,"E6","P6.6",null,"Is the city proactively seeking to exchange knowledge and learn from other cities facing similar challenges?",0,{"$f":"'E06'!$E$62","v":0}]
[null,"E7","P7.1",null,"Are “grassroots” or community organizations participating in risk reduction and post-event प्रतिक्रिया for each neighbourhood in the city?",0,{"$f":"'E07'!$E$7","v":0}]
[null,"E7","P7.2",null,"Are there regular training programmes provided to the most vulnerable populations in the city?",0,{"$f":"'E07'!$E$18","v":0}]
[null,"E7","P7.3",null,"What proportion of businesses have a documented business continuity plan that has been reviewed within the last 18 months?",0,{"$f":"'E07'!$E$29","v":0}]
[null,"E7","P7.4",null,"How effective is the city at citizen engagement and communications in relation to DRR?",0,{"$f":"'E07'!$E$40","v":0}]
[null,"E8","P8.1",null,"Is critical infrastructure resilience a city priority, does the city own and implement a critical infrastructure plan or strategy?",0,{"$f":"'E08'!E7","v":0}]
[null,"E8","P8.2",null,"Is existing protective infrastructure well-designed and well-built based on risk information?",0,{"$f":"'E08'!E18","v":0}]
[null,"E8","P8.3",null,"Would a significant loss of service for these two essential services be expected for a significant proportion of the city under the agreed disaster scenarios?",0,{"$f":"'E08'!E29","v":0}]
[null,"E8","P8.4",null,"Would a significant loss of service be expected for a significant proportion of the city in the ‘worst case’ scenario event? In the event of failure would energy infrastructure corridors remain safe (i.e. free from risk of leaks, electrocution hazards etc.)?",0,{"$f":"'E08'!E40","v":0}]
[null,"E8","P8.5",null,"Would a significant loss of service be expected for a significant proportion of the city in the ‘worst case’ scenario event? In the event of failure would transport infrastructure corridors remain safe (i.e. free from risk of flood, shocks etc) and passable?",0,{"$f":"'E08'!E51","v":0}]
[null,"E8","P8.6",null,"Would a significant loss of service be expected for a significant proportion of the city in the ‘worst case’ scenario event?",0,{"$f":"'E08'!E62","v":0}]
[null,"E8","P8.7",null,"Would there be sufficient acute healthcare capabilities to deal with expected major injuries in ‘worst case’ scenario?",0,{"$f":"'E08'!E73","v":0}]
[null,"E8","P8.8",null,"% of education structures at risk of damage from “most probable” and “most severe” scenarios",0,{"$f":"'E08'!E84","v":0}]
[null,"E8","P8.9",null,"Will there be sufficient first responder equipment, with military or civilian back up as required?",0,{"$f":"'E08'!E95","v":0}]
[null,"E9","P9.1",null,"Does the city have a plan or standard operating procedure to act on early warnings and forecasts? What proportion of the population is reachable by early warning system?",0,{"$f":"'E09'!$E$7","v":0}]
[null,"E9","P9.2",null,"Is there a disaster management / preparedness / emergency प्रतिक्रिया plan outlining city mitigation, preparedness and प्रतिक्रिया to local emergencies?",0,{"$f":"'E09'!$E$18","v":0}]
[null,"E9","P9.3",null,"Does the responsible disaster management authority have sufficient staffing capacity to support first responder duties in surge event scenario?",0,{"$f":"'E09'!$E$29","v":0}]
[null,"E9","P9.4",null,"Are equipment and supply needs, as well as the availability of equipment, clearly defined?",0,{"$f":"'E09'!$E$40","v":0}]
[null,"E9","P9.5",null,"Would the city be able to continue to feed and shelter its population post-event?",0,{"$f":"'E09'!$E$51","v":0}]
[null,"E9","P9.6",null,"Is there an emergency operations centre, with participation from all agencies, automating standard operating procedures specifically designed to deal with “most probable” and “most severe” scenarios?",0,{"$f":"'E09'!$E$62","v":0}]
[null,"E9","P9.7",null,"Do practices and drills involve both the public and professionals?",0,{"$f":"'E09'!$E$73","v":0}]
[null,"E10","P10.1",null,"Is there a strategy or process in place for post-event recovery and reconstruction, including economic reboot, societal aspects etc.?",0,{"$f":"'E10'!$E$7","v":0}]
[null,"E10","P10.2",null,"Do post-event assessment processes incorporate failure analyses and the ability to capture lessons learned that then feed into design and delivery of rebuilding projects?",0,{"$f":"'E10'!$E$18","v":0}]

{"sheet":"E01","index":3,"n_rows":33,"n_cols":6,"rows_kept":33,"cut":false,"hidden":false,"merged":[[16,2,16,3],[4,2,4,3],[3,2,3,3],[5,2,5,3],[6,2,9,3],[14,2,14,3],[15,2,15,3],[17,2,20,3],[25,2,25,3],[26,2,26,3],[27,2,27,3],[28,2,31,3]]}
[]
[]
[null,"P १.१ - योजना निर्माण"]
[null,"प्रश्‍न","टिप्पणीहरु"]
[]
[null,"प्रतिक्रिया","प्रमाणीकरणको आधार (व्याख्या र प्रमाण)"]
[null,null,null,null,null,{"$f":"IF(E7=1,TRUE,FALSE)","v":false}]
[null,null,null,null,null,{"$f":"IF(E7=2,TRUE,FALSE)","v":false}]
[null,null,null,null,null,{"$f":"IF(E7=3,TRUE,FALSE)","v":false}]
[null,null,null,null,null,{"$f":"IF(E7=4,TRUE,FALSE)","v":false}]
[null,"अधिकतम उत्थानशीलता प्राप्‍त गर्न गर्नुपर्ने कार्यहरू","जिम्मेवार निकाय","समय मापन"]
[]
[]
[null,"P १.२ - संगठन, समन्वय र सहभागिता"]
[null,"प्रश्‍न","टिप्पणीहरु"]
[]
[null,"प्रतिक्रिया","प्रमाणीकरणको आधार (व्याख्या र प्रमाण)"]
[null,null,null,null,null,{"$f":"IF(E18=1,TRUE,FALSE)","v":false}]
[null,null,null,null,null,{"$f":"IF(E18=2,TRUE,FALSE)","v":false}]
[null,null,null,null,null,{"$f":"IF(E18=3,TRUE,FALSE)","v":false}]
[null,null,null,null,null,{"$f":"IF(E18=4,TRUE,FALSE)","v":false}]
[null,"अधिकतम उत्थानशीलता प्राप्‍त गर्न गर्नुपर्ने कार्यहरू","जिम्मेवार निकाय","समय मापन"]
[]
[]
[null,"P १.३  - एकीकिण"]
[null,"प्रश्‍न","टिप्पणीहरु"]
[]
[null,"प्रतिक्रिया","प्रमाणीकरणको आधार (व्याख्या र प्रमाण)"]
[null,null,null,null,null,{"$f":"IF(E29=1,TRUE,FALSE)","v":false}]
[null,null,null,null,null,{"$f":"IF(E29=2,TRUE,FALSE)","v":false}]
[null,null,null,null,null,{"$f":"IF(E29=3,TRUE,FALSE)","v":false}]
[null,null,null,null,null,{"$f":"IF(E29=4,TRUE,FALSE)","v":false}]
[null,"अधिकतम उत्थानशीलता प्राप्‍त गर्न गर्नुपर्ने कार्यहरू","जिम्मेवार निकाय","समय मापन"]

{"sheet":"E02","index":4,"n_rows":55,"n_cols":6,"rows_kept":55,"cut":false,"hidden":false,"merged":[[48,2,48,3],[49,2,49,3],[50,2,53,3],[14,2,14,3],[15,2,15,3],[36,2,36,3],[37,2,37,3],[38,2,38,3],[39,2,42,3],[16,2,16,3],[17,2,20,3],[25,2,25,3],[26,2,26,3],[27,2,27,3],[28,2,31,3],[3,2,3,3],[4,2,4,3],[5,2,5,3],[6,2,9,3],[47,2,47,3]]}
[]
[]
[null,"P २.१  - जोखिम मूल्याङ्कन"]
[null,"प्रश्‍न","टिप्पणीहरु"]
[]
[null,"प्रतिक्रिया","प्रमाणीकरणको आधार (व्याख्या र प्रमाण)"]
[null,null,null,null,null,{"$f":"IF(E7=1,TRUE,FALSE)","v":false}]
[null,null,null,null,null,{"$f":"IF(E7=2,TRUE,FALSE)","v":false}]
[null,null,null,null,null,{"$f":"IF(E7=3,TRUE,FALSE)","v":false}]
[null,null,null,null,null,{"$f":"IF(E7=4,TRUE,FALSE)","v":false}]
[null,"अधिकतम उत्थानशीलता प्राप्‍त गर्न गर्नुपर्ने कार्यहरू","जिम्मेवार निकाय","समय मापन"]
[]
[]
[null,"P २.२ - भौतिक पूर्वाधार जोखिमको साझा बुझाई"]
[null,"प्रश्‍न","टिप्पणीहरु"]
[]
[null,"प्रतिक्रिया","प्रमाणीकरणको आधार (व्याख्या र प्रमाण)"]
[null,null,null,null,null,{"$f":"IF(E18=1,TRUE,FALSE)","v":false}]
[null,null,null,null,null,{"$f":"IF(E18=2,TRUE,FALSE)","v":false}]
[null,null,null,null,null,{"$f":"IF(E18=3,TRUE,FALSE)","v":false}]
[null,null,null,null,null,{"$f":"IF(E18=4,TRUE,FALSE)","v":false}]
[null,"अधिकतम उत्थानशीलता प्राप्‍त गर्न गर्नुपर्ने कार्यहरू","जिम्मेवार निकाय","समय मापन"]
[]
[]
[null,"P २.३  - सम्मुखता र सङ्कटासन्नताको ज्ञान"]
[null,"प्रश्‍न","टिप्पणीहरु"]
[]
[null,"प्रतिक्रिया","प्रमाणीकरणको आधार (व्याख्या र प्रमाण)"]
[null,null,null,null,null,{"$f":"IF(E29=1,TRUE,FALSE)","v":false}]
[null,null,null,null,null,{"$f":"IF(E29=2,TRUE,FALSE)","v":false}]
[null,null,null,null,null,{"$f":"IF(E29=3,TRUE,FALSE)","v":false}]
[null,null,null,null,null,{"$f":"IF(E29=4,TRUE,FALSE)","v":false}]
[null,"अधिकतम उत्थानशीलता प्राप्‍त गर्न गर्नुपर्ने कार्यहरू","जिम्मेवार निकाय","समय मापन"]
[]
[]
[null,"P २.४  - आकषस्मक प्रभावहर"]
[null,"प्रश्‍न","टिप्पणीहरु"]
[]
[null,"प्रतिक्रिया","प्रमाणीकरणको आधार (व्याख्या र प्रमाण)"]
[null,null,null,null,null,{"$f":"IF(E40=1,TRUE,FALSE)","v":false}]
[null,null,null,null,null,{"$f":"IF(E40=2,TRUE,FALSE)","v":false}]
[null,null,null,null,null,{"$f":"IF(E40=3,TRUE,FALSE)","v":false}]
[null,null,null,null,null,{"$f":"IF(E40=4,TRUE,FALSE)","v":false}]
[null,"अधिकतम उत्थानशीलता प्राप्‍त गर्न गर्नुपर्ने कार्यहरू","जिम्मेवार निकाय","समय मापन"]
[]
[]
[null,"P २.५  - जोखिम जानकारीको लागि प्रस्तुतीकरण र अद्यावधिक प्रक्रिया"]
[null,"प्रश्‍न","टिप्पणीहरु"]
[]
[null,"प्रतिक्रिया","प्रमाणीकरणको आधार (व्याख्या र प्रमाण)"]
[null,null,null,null,null,{"$f":"IF(E51=1,TRUE,FALSE)","v":false}]
[null,null,null,null,null,{"$f":"IF(E51=2,TRUE,FALSE)","v":false}]
[null,null,null,null,null,{"$f":"IF(E51=3,TRUE,FALSE)","v":false}]
[null,null,null,null,null,{"$f":"IF(E51=4,TRUE,FALSE)","v":false}]
[null,"अधिकतम उत्थानशीलता प्राप्‍त गर्न गर्नुपर्ने कार्यहरू","जिम्मेवार निकाय","समय मापन"]

{"sheet":"E03","index":5,"n_rows":44,"n_cols":6,"rows_kept":44,"cut":false,"hidden":false,"merged":[[36,2,36,3],[37,2,37,3],[38,2,38,3],[39,2,42,3],[16,2,16,3],[17,2,20,3],[25,2,25,3],[26,2,26,3],[27,2,27,3],[28,2,31,3],[15,2,15,3],[3,2,3,3],[4,2,4,3],[5,2,5,3],[6,2,9,3],[14,2,14,3]]}
[]
[]
[null,"P ३.१  - सहरमा नयाँ लगानी आकर्षित गर्ने वातावरणको निर्माण"]
[null,"प्रश्‍न","टिप्पणीहरु"]
[]
[null,"प्रतिक्रिया","प्रमाणीकरणको आधार (व्याख्या र प्रमाण)"]
[null,null,null,null,null,{"$f":"IF(E7=1,TRUE,FALSE)","v":false}]
[null,null,null,null,null,{"$f":"IF(E7=2,TRUE,FALSE)","v":false}]
[null,null,null,null,null,{"$f":"IF(E7=3,TRUE,FALSE)","v":false}]
[null,null,null,null,null,{"$f":"IF(E7=4,TRUE,FALSE)","v":false}]
[null,"अधिकतम उत्थानशीलता प्राप्‍त गर्न गर्नुपर्ने कार्यहरू","जिम्मेवार निकाय","समय मापन"]
[]
[]
[null,"P ३.२ - आकस्मिमक कोष सहित वित्तिय योजना र उत्थानशीलताको लागि बजेट"]
[null,"प्रश्‍न","टिप्पणीहरु"]
[]
[null,"प्रतिक्रिया","प्रमाणीकरणको आधार (व्याख्या र प्रमाण)"]
[null,null,null,null,null,{"$f":"IF(E18=1,TRUE,FALSE)","v":false}]
[null,null,null,null,null,{"$f":"IF(E18=2,TRUE,FALSE)","v":false}]
[null,null,null,null,null,{"$f":"IF(E18=3,TRUE,FALSE)","v":false}]
[null,null,null,null,null,{"$f":"IF(E18=4,TRUE,FALSE)","v":false}]
[null,"अधिकतम उत्थानशीलता प्राप्‍त गर्न गर्नुपर्ने कार्यहरू","जिम्मेवार निकाय","समय मापन"]
[]
[]
[null,"P ३.३ - षबमा"]
[null,"प्रश्‍न","टिप्पणीहरु"]
[]
[null,"प्रतिक्रिया","प्रमाणीकरणको आधार (व्याख्या र प्रमाण)"]
[null,null,null,null,null,{"$f":"IF(E29=1,TRUE,FALSE)","v":false}]
[null,null,null,null,null,{"$f":"IF(E29=2,TRUE,FALSE)","v":false}]
[null,null,null,null,null,{"$f":"IF(E29=3,TRUE,FALSE)","v":false}]
[null,null,null,null,null,{"$f":"IF(E29=4,TRUE,FALSE)","v":false}]
[null,"अधिकतम उत्थानशीलता प्राप्‍त गर्न गर्नुपर्ने कार्यहरू","जिम्मेवार निकाय","समय मापन"]
[]
[]
[null,"P ३.४ - प्रोत्साहन"]
[null,"प्रश्‍न","टिप्पणीहरु"]
[]
[null,"प्रतिक्रिया","प्रमाणीकरणको आधार (व्याख्या र प्रमाण)"]
[null,null,null,null,null,{"$f":"IF(E40=1,TRUE,FALSE)","v":false}]
[null,null,null,null,null,{"$f":"IF(E40=2,TRUE,FALSE)","v":false}]
[null,null,null,null,null,{"$f":"IF(E40=3,TRUE,FALSE)","v":false}]
[null,null,null,null,null,{"$f":"IF(E40=4,TRUE,FALSE)","v":false}]
[null,"अधिकतम उत्थानशीलता प्राप्‍त गर्न गर्नुपर्ने कार्यहरू","जिम्मेवार निकाय","समय मापन"]

{"sheet":"E04","index":6,"n_rows":44,"n_cols":6,"rows_kept":44,"cut":false,"hidden":false,"merged":[[36,2,36,3],[37,2,37,3],[38,2,38,3],[39,2,42,3],[16,2,16,3],[17,2,20,3],[25,2,25,3],[26,2,26,3],[27,2,27,3],[28,2,31,3],[15,2,15,3],[3,2,3,3],[4,2,4,3],[5,2,5,3],[6,2,9,3],[14,2,14,3]]}
[]
[]
[null,"P ४.१ - भू-उपयोग क्षेत्र"]
[null,"प्रश्‍न","टिप्पणीहरु"]
[]
[null,"प्रतिक्रिया","प्रमाणीकरणको आधार (व्याख्या र प्रमाण)"]
[null,null,null,null,null,{"$f":"IF(E7=1,TRUE,FALSE)","v":false}]
[null,null,null,null,null,{"$f":"IF(E7=2,TRUE,FALSE)","v":false}]
[null,null,null,null,null,{"$f":"IF(E7=3,TRUE,FALSE)","v":false}]
[null,null,null,null,null,{"$f":"IF(E7=4,TRUE,FALSE)","v":false}]
[null,"अधिकतम उत्थानशीलता प्राप्‍त गर्न गर्नुपर्ने कार्यहरू","जिम्मेवार निकाय","समय मापन"]
[]
[]
[null,"P ४.२ - नयाँ शहरी विकास"]
[null,"प्रश्‍न","टिप्पणीहरु"]
[]
[null,"प्रतिक्रिया","प्रमाणीकरणको आधार (व्याख्या र प्रमाण)"]
[null,null,null,null,null,{"$f":"IF(E18=1,TRUE,FALSE)","v":false}]
[null,null,null,null,null,{"$f":"IF(E18=2,TRUE,FALSE)","v":false}]
[null,null,null,null,null,{"$f":"IF(E18=3,TRUE,FALSE)","v":false}]
[null,null,null,null,null,{"$f":"IF(E18=4,TRUE,FALSE)","v":false}]
[null,"अधिकतम उत्थानशीलता प्राप्‍त गर्न गर्नुपर्ने कार्यहरू","जिम्मेवार निकाय","समय मापन"]
[]
[]
[null,"P ४.३ - भवन संहिता र मापदण्डहरु"]
[null,"प्रश्‍न","टिप्पणीहरु"]
[]
[null,"प्रतिक्रिया","प्रमाणीकरणको आधार (व्याख्या र प्रमाण)"]
[null,null,null,null,null,{"$f":"IF(E29=1,TRUE,FALSE)","v":false}]
[null,null,null,null,null,{"$f":"IF(E29=2,TRUE,FALSE)","v":false}]
[null,null,null,null,null,{"$f":"IF(E29=3,TRUE,FALSE)","v":false}]
[null,null,null,null,null,{"$f":"IF(E29=4,TRUE,FALSE)","v":false}]
[null,"अधिकतम उत्थानशीलता प्राप्‍त गर्न गर्नुपर्ने कार्यहरू","जिम्मेवार निकाय","समय मापन"]
[]
[]
[null,"P ४.४ - भू-बर्गीकरण, भवन संहिता र मापदण्डहरुको प्रयोग "]
[null,"प्रश्‍न","टिप्पणीहरु"]
[]
[null,"प्रतिक्रिया","प्रमाणीकरणको आधार (व्याख्या र प्रमाण)"]
[null,null,null,null,null,{"$f":"IF(E40=1,TRUE,FALSE)","v":false}]
[null,null,null,null,null,{"$f":"IF(E40=2,TRUE,FALSE)","v":false}]
[null,null,null,null,null,{"$f":"IF(E40=3,TRUE,FALSE)","v":false}]
[null,null,null,null,null,{"$f":"IF(E40=4,TRUE,FALSE)","v":false}]
[null,"अधिकतम उत्थानशीलता प्राप्‍त गर्न गर्नुपर्ने कार्यहरू","जिम्मेवार निकाय","समय मापन"]

{"sheet":"E05","index":7,"n_rows":33,"n_cols":6,"rows_kept":33,"cut":false,"hidden":false,"merged":[[28,2,31,3],[3,2,3,3],[4,2,4,3],[5,2,5,3],[6,2,9,3],[14,2,14,3],[15,2,15,3],[16,2,16,3],[17,2,20,3],[25,2,25,3],[26,2,26,3],[27,2,27,3]]}
[]
[]
[null,"P ५.१ - पारिस्थितिक प्रणालीजन्य लाभहरु /कार्यहरुको सचेतना र बुझाई "]
[null,"प्रश्‍न","टिप्पणीहरु"]
[]
[null,"प्रतिक्रिया","प्रमाणीकरणको आधार (व्याख्या र प्रमाण)"]
[null,null,null,null,null,{"$f":"IF(E7=1,TRUE,FALSE)","v":false}]
[null,null,null,null,null,{"$f":"IF(E7=2,TRUE,FALSE)","v":false}]
[null,null,null,null,null,{"$f":"IF(E7=3,TRUE,FALSE)","v":false}]
[null,null,null,null,null,{"$f":"IF(E7=4,TRUE,FALSE)","v":false}]
[null,"अधिकतम उत्थानशीलता प्राप्‍त गर्न गर्नुपर्ने कार्यहरू","जिम्मेवार निकाय","समय मापन"]
[]
[]
[null,"P ५.२  - सहरको नीति र आयोजनाहरुमा Green and Blue Infrastructure (GBI) को एकीकरण "]
[null,"प्रश्‍न","टिप्पणीहरु"]
[]
[null,"प्रतिक्रिया","प्रमाणीकरणको आधार (व्याख्या र प्रमाण)"]
[null,null,null,null,null,{"$f":"IF(E18=1,TRUE,FALSE)","v":false}]
[null,null,null,null,null,{"$f":"IF(E18=2,TRUE,FALSE)","v":false}]
[null,null,null,null,null,{"$f":"IF(E18=3,TRUE,FALSE)","v":false}]
[null,null,null,null,null,{"$f":"IF(E18=4,TRUE,FALSE)","v":false}]
[null,"अधिकतम उत्थानशीलता प्राप्‍त गर्न गर्नुपर्ने कार्यहरू","जिम्मेवार निकाय","समय मापन"]
[]
[]
[null,"P ५.३  - सीमावती वाताविण मद्दुाहर"]
[null,"प्रश्‍न","टिप्पणीहरु"]
[]
[null,"प्रतिक्रिया","प्रमाणीकरणको आधार (व्याख्या र प्रमाण)"]
[null,null,null,null,null,{"$f":"IF(E29=1,TRUE,FALSE)","v":false}]
[null,null,null,null,null,{"$f":"IF(E29=2,TRUE,FALSE)","v":false}]
[null,null,null,null,null,{"$f":"IF(E29=3,TRUE,FALSE)","v":false}]
[null,null,null,null,null,{"$f":"IF(E29=4,TRUE,FALSE)","v":false}]
[null,"अधिकतम उत्थानशीलता प्राप्‍त गर्न गर्नुपर्ने कार्यहरू","जिम्मेवार निकाय","समय मापन"]

{"sheet":"E06","index":8,"n_rows":66,"n_cols":6,"rows_kept":66,"cut":false,"hidden":false,"merged":[[61,2,64,3],[36,2,36,3],[37,2,37,3],[38,2,38,3],[39,2,42,3],[47,2,47,3],[48,2,48,3],[49,2,49,3],[50,2,53,3],[58,2,58,3],[59,2,59,3],[60,2,60,3],[28,2,31,3],[3,2,3,3],[4,2,4,3],[5,2,5,3],[6,2,9,3],[14,2,14,3],[15,2,15,3],[16,2,16,3],[17,2,20,3],[25,2,25,3],[26,2,26,3],[27,2,27,3]]}
[]
[]
[null,"P ६.१  - सीप र अनुभव"]
[null,"प्रश्‍न","टिप्पणीहरु"]
[]
[null,"प्रतिक्रिया","प्रमाणीकरणको आधार (व्याख्या र प्रमाण)"]
[null,null,null,null,null,{"$f":"IF(E7=1,TRUE,FALSE)","v":false}]
[null,null,null,null,null,{"$f":"IF(E7=2,TRUE,FALSE)","v":false}]
[null,null,null,null,null,{"$f":"IF(E7=3,TRUE,FALSE)","v":false}]
[null,null,null,null,null,{"$f":"IF(E7=4,TRUE,FALSE)","v":false}]
[null,"अधिकतम उत्थानशीलता प्राप्‍त गर्न गर्नुपर्ने कार्यहरू","जिम्मेवार निकाय","समय मापन"]
[]
[]
[null,"P ६.२ - सार्वजनिक शिक्षा र सचेतना"]
[null,"प्रश्‍न","टिप्पणीहरु"]
[]
[null,"प्रतिक्रिया","प्रमाणीकरणको आधार (व्याख्या र प्रमाण)"]
[null,null,null,null,null,{"$f":"IF(E18=1,TRUE,FALSE)","v":false}]
[null,null,null,null,null,{"$f":"IF(E18=2,TRUE,FALSE)","v":false}]
[null,null,null,null,null,{"$f":"IF(E18=3,TRUE,FALSE)","v":false}]
[null,null,null,null,null,{"$f":"IF(E18=4,TRUE,FALSE)","v":false}]
[null,"अधिकतम उत्थानशीलता प्राप्‍त गर्न गर्नुपर्ने कार्यहरू","जिम्मेवार निकाय","समय मापन"]
[]
[]
[null,"P ६.३ - तथ्याङ्क साझेदारी"]
[null,"प्रश्‍न","टिप्पणीहरु"]
[]
[null,"प्रतिक्रिया","प्रमाणीकरणको आधार (व्याख्या र प्रमाण)"]
[null,null,null,null,null,{"$f":"IF(E29=1,TRUE,FALSE)","v":false}]
[null,null,null,null,null,{"$f":"IF(E29=2,TRUE,FALSE)","v":false}]
[null,null,null,null,null,{"$f":"IF(E29=3,TRUE,FALSE)","v":false}]
[null,null,null,null,null,{"$f":"IF(E29=4,TRUE,FALSE)","v":false}]
[null,"अधिकतम उत्थानशीलता प्राप्‍त गर्न गर्नुपर्ने कार्यहरू","जिम्मेवार निकाय","समय मापन"]
[]
[]
[null,"P ६.४ - ताषलम प्रवाह"]
[null,"प्रश्‍न","टिप्पणीहरु"]
[]
[null,"प्रतिक्रिया","प्रमाणीकरणको आधार (व्याख्या र प्रमाण)"]
[null,null,null,null,null,{"$f":"IF(E40=1,TRUE,FALSE)","v":false}]
[null,null,null,null,null,{"$f":"IF(E40=2,TRUE,FALSE)","v":false}]
[null,null,null,null,null,{"$f":"IF(E40=3,TRUE,FALSE)","v":false}]
[null,null,null,null,null,{"$f":"IF(E40=4,TRUE,FALSE)","v":false}]
[null,"अधिकतम उत्थानशीलता प्राप्‍त गर्न गर्नुपर्ने कार्यहरू","जिम्मेवार निकाय","समय मापन"]
[]
[]
[null,"P ६.५ - भाषा"]
[null,"प्रश्‍न","टिप्पणीहरु"]
[]
[null,"प्रतिक्रिया","प्रमाणीकरणको आधार (व्याख्या र प्रमाण)"]
[null,null,null,null,null,{"$f":"IF(E51=1,TRUE,FALSE)","v":false}]
[null,null,null,null,null,{"$f":"IF(E51=2,TRUE,FALSE)","v":false}]
[null,null,null,null,null,{"$f":"IF(E51=3,TRUE,FALSE)","v":false}]
[null,null,null,null,null,{"$f":"IF(E51=4,TRUE,FALSE)","v":false}]
[null,"अधिकतम उत्थानशीलता प्राप्‍त गर्न गर्नुपर्ने कार्यहरू","जिम्मेवार निकाय","समय मापन"]
[]
[]
[null,"P ६.६  - अरुबाट षसक्न"]
[null,"प्रश्‍न","टिप्पणीहरु"]
[]
[null,"प्रतिक्रिया","प्रमाणीकरणको आधार (व्याख्या र प्रमाण)"]
[null,null,null,null,null,{"$f":"IF(E62=1,TRUE,FALSE)","v":false}]
[null,null,null,null,null,{"$f":"IF(E62=2,TRUE,FALSE)","v":false}]
[null,null,null,null,null,{"$f":"IF(E62=3,TRUE,FALSE)","v":false}]
[null,null,null,null,null,{"$f":"IF(E62=4,TRUE,FALSE)","v":false}]
[null,"अधिकतम उत्थानशीलता प्राप्‍त गर्न गर्नुपर्ने कार्यहरू","जिम्मेवार निकाय","समय मापन"]

{"sheet":"E07","index":9,"n_rows":44,"n_cols":6,"rows_kept":44,"cut":false,"hidden":false,"merged":[[36,2,36,3],[37,2,37,3],[38,2,38,3],[39,2,42,3],[16,2,16,3],[17,2,20,3],[25,2,25,3],[26,2,26,3],[27,2,27,3],[28,2,31,3],[15,2,15,3],[3,2,3,3],[4,2,4,3],[5,2,5,3],[6,2,9,3],[14,2,14,3]]}
[]
[]
[null,"P ७.१ - समुदाय वा तल्लो तहको संगठन सञ्जाल र तालिम"]
[null,"प्रश्‍न","टिप्पणीहरु"]
[]
[null,"प्रतिक्रिया","प्रमाणीकरणको आधार (व्याख्या र प्रमाण)"]
[null,null,null,null,null,{"$f":"IF(E7=1,TRUE,FALSE)","v":false}]
[null,null,null,null,null,{"$f":"IF(E7=2,TRUE,FALSE)","v":false}]
[null,null,null,null,null,{"$f":"IF(E7=3,TRUE,FALSE)","v":false}]
[null,null,null,null,null,{"$f":"IF(E7=4,TRUE,FALSE)","v":false}]
[null,"अधिकतम उत्थानशीलता प्राप्‍त गर्न गर्नुपर्ने कार्यहरू","जिम्मेवार निकाय","समय मापन"]
[]
[]
[null,"P ७.२ - सामाषजक सचजाल (संग संगैषहडौं)"]
[null,"प्रश्‍न","टिप्पणीहरु"]
[]
[null,"प्रतिक्रिया","प्रमाणीकरणको आधार (व्याख्या र प्रमाण)"]
[null,null,null,null,null,{"$f":"IF(E18=1,TRUE,FALSE)","v":false}]
[null,null,null,null,null,{"$f":"IF(E18=2,TRUE,FALSE)","v":false}]
[null,null,null,null,null,{"$f":"IF(E18=3,TRUE,FALSE)","v":false}]
[null,null,null,null,null,{"$f":"IF(E18=4,TRUE,FALSE)","v":false}]
[null,"अधिकतम उत्थानशीलता प्राप्‍त गर्न गर्नुपर्ने कार्यहरू","जिम्मेवार निकाय","समय मापन"]
[]
[]
[null,"P ७.३   - निजी क्षेत्र र रोजगारदाताहरु"]
[null,"प्रश्‍न","टिप्पणीहरु"]
[]
[null,"प्रतिक्रिया","प्रमाणीकरणको आधार (व्याख्या र प्रमाण)"]
[null,null,null,null,null,{"$f":"IF(E29=1,TRUE,FALSE)","v":false}]
[null,null,null,null,null,{"$f":"IF(E29=2,TRUE,FALSE)","v":false}]
[null,null,null,null,null,{"$f":"IF(E29=3,TRUE,FALSE)","v":false}]
[null,null,null,null,null,{"$f":"IF(E29=4,TRUE,FALSE)","v":false}]
[null,"अधिकतम उत्थानशीलता प्राप्‍त गर्न गर्नुपर्ने कार्यहरू","जिम्मेवार निकाय","समय मापन"]
[]
[]
[null,"P ७.४ - नागरिक संलग्नताका षवषधहर"]
[null,"प्रश्‍न","टिप्पणीहरु"]
[]
[null,"प्रतिक्रिया","प्रमाणीकरणको आधार (व्याख्या र प्रमाण)"]
[null,null,null,null,null,{"$f":"IF(E40=1,TRUE,FALSE)","v":false}]
[null,null,null,null,null,{"$f":"IF(E40=2,TRUE,FALSE)","v":false}]
[null,null,null,null,null,{"$f":"IF(E40=3,TRUE,FALSE)","v":false}]
[null,null,null,null,null,{"$f":"IF(E40=4,TRUE,FALSE)","v":false}]
[null,"अधिकतम उत्थानशीलता प्राप्‍त गर्न गर्नुपर्ने कार्यहरू","जिम्मेवार निकाय","समय मापन"]

{"sheet":"E08","index":10,"n_rows":99,"n_cols":6,"rows_kept":99,"cut":false,"hidden":false,"merged":[[94,2,97,3],[80,2,80,3],[81,2,81,3],[82,2,82,3],[83,2,86,3],[91,2,91,3],[92,2,92,3],[93,2,93,3],[27,2,27,3],[61,2,64,3],[36,2,36,3],[37,2,37,3],[38,2,38,3],[39,2,42,3],[47,2,47,3],[48,2,48,3],[49,2,49,3],[50,2,53,3],[58,2,58,3],[59,2,59,3],[60,2,60,3],[15,2,15,3],[16,2,16,3],[17,2,20,3],[25,2,25,3],[26,2,26,3],[3,2,3,3],[4,2,4,3],[5,2,5,3],[6,2,9,3],[14,2,14,3],[69,2,69,3],[70,2,70,3],[71,2,71,3],[72,2,75,3],[28,2,31,3]]}
[]
[]
[null,"P ८.१ - संवेदनशील भौतिक पूर्वाधार सर्वेक्षण"]
[null,"प्रश्‍न","टिप्पणीहरु"]
[]
[null,"प्रतिक्रिया","प्रमाणीकरणको आधार (व्याख्या र प्रमाण)"]
[null,null,null,null,null,{"$f":"IF(E7=1,TRUE,FALSE)","v":false}]
[null,null,null,null,null,{"$f":"IF(E7=2,TRUE,FALSE)","v":false}]
[null,null,null,null,null,{"$f":"IF(E7=3,TRUE,FALSE)","v":false}]
[null,null,null,null,null,{"$f":"IF(E7=4,TRUE,FALSE)","v":false}]
[null,"अधिकतम उत्थानशीलता प्राप्‍त गर्न गर्नुपर्ने कार्यहरू","जिम्मेवार निकाय","समय मापन"]
[]
[]
[null,"P ८.२ - सुरक्षित भौतिक पूर्वाधार"]
[null,"प्रश्‍न","टिप्पणीहरु"]
[]
[null,"प्रतिक्रिया","प्रमाणीकरणको आधार (व्याख्या र प्रमाण)"]
[null,null,null,null,null,{"$f":"IF(E18=1,TRUE,FALSE)","v":false}]
[null,null,null,null,null,{"$f":"IF(E18=2,TRUE,FALSE)","v":false}]
[null,null,null,null,null,{"$f":"IF(E18=3,TRUE,FALSE)","v":false}]
[null,null,null,null,null,{"$f":"IF(E18=4,TRUE,FALSE)","v":false}]
[null,"अधिकतम उत्थानशीलता प्राप्‍त गर्न गर्नुपर्ने कार्यहरू","जिम्मेवार निकाय","समय मापन"]
[]
[]
[null,"P ८.३  - पिउन योग्य पानी र सरसफाई"]
[null,"प्रश्‍न","टिप्पणीहरु"]
[]
[null,"प्रतिक्रिया","प्रमाणीकरणको आधार (व्याख्या र प्रमाण)"]
[null,null,null,null,null,{"$f":"IF(E29=1,TRUE,FALSE)","v":false}]
[null,null,null,null,null,{"$f":"IF(E29=2,TRUE,FALSE)","v":false}]
[null,null,null,null,null,{"$f":"IF(E29=3,TRUE,FALSE)","v":false}]
[null,null,null,null,null,{"$f":"IF(E29=4,TRUE,FALSE)","v":false}]
[null,"अधिकतम उत्थानशीलता प्राप्‍त गर्न गर्नुपर्ने कार्यहरू","जिम्मेवार निकाय","समय मापन"]
[]
[]
[null,"P ८.४ - उजा"]
[null,"प्रश्‍न","टिप्पणीहरु"]
[]
[null,"प्रतिक्रिया","प्रमाणीकरणको आधार (व्याख्या र प्रमाण)"]
[null,null,null,null,null,{"$f":"IF(E40=1,TRUE,FALSE)","v":false}]
[null,null,null,null,null,{"$f":"IF(E40=2,TRUE,FALSE)","v":false}]
[null,null,null,null,null,{"$f":"IF(E40=3,TRUE,FALSE)","v":false}]
[null,null,null,null,null,{"$f":"IF(E40=4,TRUE,FALSE)","v":false}]
[null,"अधिकतम उत्थानशीलता प्राप्‍त गर्न गर्नुपर्ने कार्यहरू","जिम्मेवार निकाय","समय मापन"]
[]
[]
[null,"P ८.५ - यातायात"]
[null,"प्रश्‍न","टिप्पणीहरु"]
[]
[null,"प्रतिक्रिया","प्रमाणीकरणको आधार (व्याख्या र प्रमाण)"]
[null,null,null,null,null,{"$f":"IF(E51=1,TRUE,FALSE)","v":false}]
[null,null,null,null,null,{"$f":"IF(E51=2,TRUE,FALSE)","v":false}]
[null,null,null,null,null,{"$f":"IF(E51=3,TRUE,FALSE)","v":false}]
[null,null,null,null,null,{"$f":"IF(E51=4,TRUE,FALSE)","v":false}]
[null,"अधिकतम उत्थानशीलता प्राप्‍त गर्न गर्नुपर्ने कार्यहरू","जिम्मेवार निकाय","समय मापन"]
[]
[]
[null,"P ८.६  - सञ्चार"]
[null,"प्रश्‍न","टिप्पणीहरु"]
[]
[null,"प्रतिक्रिया","प्रमाणीकरणको आधार (व्याख्या र प्रमाण)"]
[null,null,null,null,null,{"$f":"IF(E62=1,TRUE,FALSE)","v":false}]
[null,null,null,null,null,{"$f":"IF(E62=2,TRUE,FALSE)","v":false}]
[null,null,null,null,null,{"$f":"IF(E62=3,TRUE,FALSE)","v":false}]
[null,null,null,null,null,{"$f":"IF(E62=4,TRUE,FALSE)","v":false}]
[null,"अधिकतम उत्थानशीलता प्राप्‍त गर्न गर्नुपर्ने कार्यहरू","जिम्मेवार निकाय","समय मापन"]
[]
[]
[null,"P ८.७  - स्वास्थ्य सेवा"]
[null,"प्रश्‍न","टिप्पणीहरु"]
[]
[null,"प्रतिक्रिया","प्रमाणीकरणको आधार (व्याख्या र प्रमाण)"]
[null,null,null,null,null,{"$f":"IF(E73=1,TRUE,FALSE)","v":false}]
[null,null,null,null,null,{"$f":"IF(E73=2,TRUE,FALSE)","v":false}]
[null,null,null,null,null,{"$f":"IF(E73=3,TRUE,FALSE)","v":false}]
[null,null,null,null,null,{"$f":"IF(E73=4,TRUE,FALSE)","v":false}]
[null,"अधिकतम उत्थानशीलता प्राप्‍त गर्न गर्नुपर्ने कार्यहरू","जिम्मेवार निकाय","समय मापन"]
[]
[]
[null,"P ८.८  - षशक्षाको सषुवधा"]
[null,"प्रश्‍न","टिप्पणीहरु"]
[]
[null,"प्रतिक्रिया","प्रमाणीकरणको आधार (व्याख्या र प्रमाण)"]
[null,null,null,null,null,{"$f":"IF(E84=1,TRUE,FALSE)","v":false}]
[null,null,null,null,null,{"$f":"IF(E84=2,TRUE,FALSE)","v":false}]
[null,null,null,null,null,{"$f":"IF(E84=3,TRUE,FALSE)","v":false}]
[null,null,null,null,null,{"$f":"IF(E84=4,TRUE,FALSE)","v":false}]
[null,"अधिकतम उत्थानशीलता प्राप्‍त गर्न गर्नुपर्ने कार्यहरू","जिम्मेवार निकाय","समय मापन"]
[]
[]
[null,"P ८.९  - पहिलो प्रतिक्रियाकर्ता सम्पत्ति"]
[null,"प्रश्‍न","टिप्पणीहरु"]
[]
[null,"प्रतिक्रिया","प्रमाणीकरणको आधार (व्याख्या र प्रमाण)"]
[null,null,null,null,null,{"$f":"IF(E95=1,TRUE,FALSE)","v":false}]
[null,null,null,null,null,{"$f":"IF(E95=2,TRUE,FALSE)","v":false}]
[null,null,null,null,null,{"$f":"IF(E95=3,TRUE,FALSE)","v":false}]
[null,null,null,null,null,{"$f":"IF(E95=4,TRUE,FALSE)","v":false}]
[null,"अधिकतम उत्थानशीलता प्राप्‍त गर्न गर्नुपर्ने कार्यहरू","जिम्मेवार निकाय","समय मापन"]

{"sheet":"E09","index":11,"n_rows":77,"n_cols":6,"rows_kept":77,"cut":false,"hidden":false,"merged":[[3,2,3,3],[4,2,4,3],[5,2,5,3],[6,2,9,3],[14,2,14,3],[15,2,15,3],[16,2,16,3],[17,2,20,3],[25,2,25,3],[26,2,26,3],[27,2,27,3],[28,2,31,3],[36,2,36,3],[37,2,37,3],[38,2,38,3],[39,2,42,3],[47,2,47,3],[48,2,48,3],[49,2,49,3],[50,2,53,3],[70,2,70,3],[71,2,71,3],[72,2,75,3],[58,2,58,3],[59,2,59,3],[60,2,60,3],[61,2,64,3],[69,2,69,3]]}
["https://mcr2030.undrr.org/disaster-resilience-scorecard-cities"]
[]
[null,"P ९.१ - पवूयसचूना"]
[null,"प्रश्‍न","टिप्पणीहरु"]
[]
[null,"प्रतिक्रिया","प्रमाणीकरणको आधार (व्याख्या र प्रमाण)"]
[null,null,null,null,null,{"$f":"IF(E7=1,TRUE,FALSE)","v":false}]
[null,null,null,null,null,{"$f":"IF(E7=2,TRUE,FALSE)","v":false}]
[null,null,null,null,null,{"$f":"IF(E7=3,TRUE,FALSE)","v":false}]
[null,null,null,null,null,{"$f":"IF(E7=4,TRUE,FALSE)","v":false}]
[null,"अधिकतम उत्थानशीलता प्राप्‍त गर्न गर्नुपर्ने कार्यहरू","जिम्मेवार निकाय","समय मापन"]
[]
[]
[null,"P ९.२  - घटना व्यवस्थापन योजनाहरु"]
[null,"प्रश्‍न","टिप्पणीहरु"]
[]
[null,"प्रतिक्रिया","प्रमाणीकरणको आधार (व्याख्या र प्रमाण)"]
[null,null,null,null,null,{"$f":"IF(E18=1,TRUE,FALSE)","v":false}]
[null,null,null,null,null,{"$f":"IF(E18=2,TRUE,FALSE)","v":false}]
[null,null,null,null,null,{"$f":"IF(E18=3,TRUE,FALSE)","v":false}]
[null,null,null,null,null,{"$f":"IF(E18=4,TRUE,FALSE)","v":false}]
[null,"अधिकतम उत्थानशीलता प्राप्‍त गर्न गर्नुपर्ने कार्यहरू","जिम्मेवार निकाय","समय मापन"]
[]
[]
[null,"P ९.३ - प्रतिकार्यकर्ता / कर्मचारी आवश्यकता"]
[null,"प्रश्‍न","टिप्पणीहरु"]
[]
[null,"प्रतिक्रिया","प्रमाणीकरणको आधार (व्याख्या र प्रमाण)"]
[null,null,null,null,null,{"$f":"IF(E29=1,TRUE,FALSE)","v":false}]
[null,null,null,null,null,{"$f":"IF(E29=2,TRUE,FALSE)","v":false}]
[null,null,null,null,null,{"$f":"IF(E29=3,TRUE,FALSE)","v":false}]
[null,null,null,null,null,{"$f":"IF(E29=4,TRUE,FALSE)","v":false}]
[null,"अधिकतम उत्थानशीलता प्राप्‍त गर्न गर्नुपर्ने कार्यहरू","जिम्मेवार निकाय","समय मापन"]
[]
[]
[null,"P ९.४ - उपकरण र राहत आपूर्तिको आवश्यकता"]
[null,"प्रश्‍न","टिप्पणीहरु"]
[]
[null,"प्रतिक्रिया","प्रमाणीकरणको आधार (व्याख्या र प्रमाण)"]
[null,null,null,null,null,{"$f":"IF(E40=1,TRUE,FALSE)","v":false}]
[null,null,null,null,null,{"$f":"IF(E40=2,TRUE,FALSE)","v":false}]
[null,null,null,null,null,{"$f":"IF(E40=3,TRUE,FALSE)","v":false}]
[null,null,null,null,null,{"$f":"IF(E40=4,TRUE,FALSE)","v":false}]
[null,"अधिकतम उत्थानशीलता प्राप्‍त गर्न गर्नुपर्ने कार्यहरू","जिम्मेवार निकाय","समय मापन"]
[]
[]
[null,"P ९.५ - खाद्य आश्रय, मुख्य सामाग्री र इन्धन आपूर्ती"]
[null,"प्रश्‍न","टिप्पणीहरु"]
[]
[null,"प्रतिक्रिया","प्रमाणीकरणको आधार (व्याख्या र प्रमाण)"]
[null,null,null,null,null,{"$f":"IF(E51=1,TRUE,FALSE)","v":false}]
[null,null,null,null,null,{"$f":"IF(E51=2,TRUE,FALSE)","v":false}]
[null,null,null,null,null,{"$f":"IF(E51=3,TRUE,FALSE)","v":false}]
[null,null,null,null,null,{"$f":"IF(E51=4,TRUE,FALSE)","v":false}]
[null,"अधिकतम उत्थानशीलता प्राप्‍त गर्न गर्नुपर्ने कार्यहरू","जिम्मेवार निकाय","समय मापन"]
[]
[]
[null,"P ९.६ - अन्तर-क्रियाशिलता र अन्तर संस्था कार्य"]
[null,"प्रश्‍न","टिप्पणीहरु"]
[]
[null,"प्रतिक्रिया","प्रमाणीकरणको आधार (व्याख्या र प्रमाण)"]
[null,null,null,null,null,{"$f":"IF(E62=1,TRUE,FALSE)","v":false}]
[null,null,null,null,null,{"$f":"IF(E62=2,TRUE,FALSE)","v":false}]
[null,null,null,null,null,{"$f":"IF(E62=3,TRUE,FALSE)","v":false}]
[null,null,null,null,null,{"$f":"IF(E62=4,TRUE,FALSE)","v":false}]
[null,"अधिकतम उत्थानशीलता प्राप्‍त गर्न गर्नुपर्ने कार्यहरू","जिम्मेवार निकाय","समय मापन"]
[]
[]
[null,"P ९.७  - अभ्यास"]
[null,"प्रश्‍न","टिप्पणीहरु"]
[]
[null,"प्रतिक्रिया","प्रमाणीकरणको आधार (व्याख्या र प्रमाण)"]
[null,null,null,null,null,{"$f":"IF(E73=1,TRUE,FALSE)","v":false}]
[null,null,null,null,null,{"$f":"IF(E73=2,TRUE,FALSE)","v":false}]
[null,null,null,null,null,{"$f":"IF(E73=3,TRUE,FALSE)","v":false}]
[null,null,null,null,null,{"$f":"IF(E73=4,TRUE,FALSE)","v":false}]
[null,"अधिकतम उत्थानशीलता प्राप्‍त गर्न गर्नुपर्ने कार्यहरू","जिम्मेवार निकाय","समय मापन"]

{"sheet":"E10","index":12,"n_rows":22,"n_cols":6,"rows_kept":22,"cut":false,"hidden":false,"merged":[[15,2,15,3],[16,2,16,3],[17,2,20,3],[3,2,3,3],[4,2,4,3],[5,2,5,3],[6,2,9,3],[14,2,14,3]]}
[]
[]
[null,"P १०.१ - घटना पश्चात पुन:स्थापना र पुनर्लाभ"]
[null,"प्रश्‍न","टिप्पणीहरु"]
[]
[null,"प्रतिक्रिया","प्रमाणीकरणको आधार (व्याख्या र प्रमाण)"]
[null,null,null,null,null,{"$f":"IF(E7=1,TRUE,FALSE)","v":false}]
[null,null,null,null,null,{"$f":"IF(E7=2,TRUE,FALSE)","v":false}]
[null,null,null,null,null,{"$f":"IF(E7=3,TRUE,FALSE)","v":false}]
[null,null,null,null,null,{"$f":"IF(E7=4,TRUE,FALSE)","v":false}]
[null,"अधिकतम उत्थानशीलता प्राप्‍त गर्न गर्नुपर्ने कार्यहरू","जिम्मेवार निकाय","समय मापन"]
[]
[]
[null,"P १०.२  - सिकिएका अभ्यासहरु र सिकिने मार्ग"]
[null,"प्रश्‍न","टिप्पणीहरु"]
[]
[null,"प्रतिक्रिया","प्रमाणीकरणको आधार (व्याख्या र प्रमाण)"]
[null,null,null,null,null,{"$f":"IF(E18=1,TRUE,FALSE)","v":false}]
[null,null,null,null,null,{"$f":"IF(E18=2,TRUE,FALSE)","v":false}]
[null,null,null,null,null,{"$f":"IF(E18=3,TRUE,FALSE)","v":false}]
[null,null,null,null,null,{"$f":"IF(E18=4,TRUE,FALSE)","v":false}]
[null,"अधिकतम उत्थानशीलता प्राप्‍त गर्न गर्नुपर्ने कार्यहरू","जिम्मेवार निकाय","समय मापन"]

{"sheet":"About","index":13,"n_rows":0,"n_cols":0,"rows_kept":0,"cut":false,"hidden":false,"merged":[]}